bitfinex/quotes_SOLUSD_20220302
["timestamp","ask_amount","ask_price","bid_price","bid_amount"]
[1646249214386,14.9673,100.31,100.24,46.6331]
[1646249214690,14.9673,100.31,100.24,46.8831]
[1646249214890,14.9673,100.31,100.24,46.6331]
[1646249215517,14.9673,100.31,100.25,0.63115362]
[1646249215914,14.9673,100.31,100.26,59.60848015]
[1646249216616,14.9673,100.31,100.24,46.6331]
[1646249216815,26.9573,100.31,100.23,5.0]
[1646249217015,9.989,100.3,100.23,5.0]
[1646249217417,11.99,100.29,100.21,47.9449]
[1646249217617,14.9758,100.27,100.21,47.9449]
[1646249217816,14.9758,100.27,100.2,55.93317814]
[1646249218217,14.9758,100.27,100.19,5.0]
[1646249218416,14.84273733,100.27,100.19,5.0]
[1646249219021,14.84273733,100.27,100.19,5.25]
[1646249219218,14.84273733,100.27,100.2,43.84289278]
[1646249220420,14.84273733,100.27,100.19,5.25]
[1646249220620,6.0,100.26,100.19,0.25]
[1646249220820,14.9762,100.25,100.18,66.62638903]
[1646249221319,14.9762,100.25,100.18,53.4632]
[1646249221521,14.9762,100.25,100.18,48.4632]
[1646249222523,14.9762,100.25,100.16,17.91318903]
[1646249222721,3.991,100.24,100.15,71.3699]
[1646249222923,14.98,100.23,100.15,48.2092]
[1646249223124,3.992,100.22,100.12,35.74439206]
[1646249223322,18.362,100.22,100.13,6.0]
[1646249223522,18.362,100.22,100.13,49.19548884]
[1646249224422,14.9857,100.2,100.13,49.19548884]
[1646249224621,14.9857,100.2,100.12,20.46222906]
[1646249225625,14.9857,100.2,100.13,54.48329726]
[1646249227225,14.9857,100.2,100.14,0.74102886]
[1646249227426,14.9857,100.2,100.13,54.48329726]
[1646249228025,6.0,100.19,100.13,54.48329726]
[1646249228427,14.9857,100.2,100.14,0.6148881]
[1646249228727,6.0,100.19,100.13,54.48329726]
[1646249228927,6.0,100.19,100.15,47.51728538]
[1646249229530,53.936,100.23,100.16,0.50086135]
[1646249229729,6.0,100.22,100.15,47.51728538]
[1646249229929,6.0,100.22,100.13,23.8247]
[1646249230131,18.363,100.21,100.07,77.0641]
[1646249230331,18.363,100.21,100.09,6.0]
[1646249230530,29.352,100.21,100.09,6.0]
[1646249230934,29.352,100.21,100.1,83.12357044]
[1646249231130,3.993,100.2,100.11,6.0]
[1646249231331,68.3218,100.2,100.12,52.77120394]
[1646249232333,68.3218,100.2,100.1,22.958]
[1646249233133,14.9877,100.18,100.1,22.958]
[1646249233434,3.993,100.2,100.11,49.4793764]
[1646249233631,49.9479,100.22,100.12,0.45854252]
[1646249233831,64.3179,100.22,100.12,0.45854252]
[1646249234031,29.3517,100.22,100.12,14.982]
[1646249234231,3.993,100.21,100.12,26.76528236]
[1646249234432,14.9817,100.22,100.13,168.12445819]
[1646249234632,14.9817,100.22,100.13,168.37445819]
[1646249234831,14.9817,100.22,100.13,68.30431653]
[1646249235132,18.9761,100.21,100.13,59.7552765]
[1646249235431,14.9831,100.21,100.12,47.8238]
[1646249235631,3.993,100.2,100.12,47.8238]
[1646249236432,6.0,100.19,100.13,43.58293966]
[1646249236835,6.0,100.19,100.13,43.83293966]
[1646249237036,64.3252,100.21,100.13,43.83293966]
[1646249237233,6.0,100.2,100.13,43.83293966]
[1646249237434,6.0,100.2,100.12,47.8238]
[1646249237635,14.9852,100.19,100.12,47.8238]
[1646249237935,14.9852,100.19,100.08,77.77074903]
[1646249238134,18.9792,100.19,100.09,5.0]
[1646249238540,18.9792,100.19,100.1,50.53311143]
[1646249238938,18.9792,100.19,100.1,45.53311143]
[1646249239137,14.9852,100.19,100.1,45.53311143]
[1646249239337,14.9852,100.19,100.1,50.53311143]
[1646249239537,14.9852,100.19,100.1,50.78311143]
[1646249239737,14.9852,100.19,100.1,150.41311143]
[1646249240137,14.9852,100.19,100.11,5.50859092]
[1646249240337,14.9852,100.19,100.12,52.60654534]
[1646249240539,14.9852,100.19,100.13,0.5141934]
[1646249240739,14.9852,100.19,100.12,52.60654534]
[1646249241763,14.9852,100.19,100.12,57.60654534]
[1646249242163,14.9852,100.19,100.13,0.77910356]
[1646249242365,14.9852,100.19,100.14,47.81479976]
[1646249243364,14.9852,100.19,100.13,5.0]
[1646249243962,14.9852,100.19,100.13,4.5]
[1646249244164,14.9852,100.19,100.1,37.8228]
[1646249244363,14.9852,100.19,100.11,54.96998424]
[1646249244765,3.994,100.18,100.08,57.25584903]
[1646249244964,3.994,100.18,100.08,23.8489]
[1646249244965,78.92085517,100.18,100.08,23.8489]
[1646249245176,14.9943,100.15,100.08,28.3489]
[1646249245364,18.9893,100.15,100.08,23.8489]
[1646249245765,18.9893,100.15,100.09,43.47289247]
[1646249246165,14.9943,100.15,100.09,43.47289247]
[1646249246368,14.9943,100.15,100.09,46.0219325]
[1646249246564,14.9943,100.15,100.09,43.47289247]
[1646249247568,14.9943,100.15,100.08,23.8489]
[1646249247766,14.9943,100.15,100.06,23.4217]
[1646249247966,68.3463,100.16,100.06,23.4217]
[1646249247967,3.995,100.16,100.06,23.4217]
[1646249248168,3.995,100.18,100.08,111.81269201]
[1646249248371,47.7296,100.19,100.09,0.67057524]
[1646249248567,3.994,100.18,100.1,4.5]
[1646249248768,3.994,100.18,100.1,2.54904003]
[1646249248973,3.994,100.18,100.11,46.41630542]
[1646249249671,6.0,100.17,100.11,46.41630542]
[1646249249871,3.994,100.16,100.11,46.41630542]
[1646249250973,3.994,100.16,100.09,48.0771]
[1646249251173,18.9844,100.16,100.09,48.0771]
[1646249251575,75.48166668,100.16,100.05,12.18269201]
[1646249251773,91.54852185,100.16,100.05,12.18269201]
[1646249251972,91.54852185,100.16,100.06,59.96266164]
[1646249252173,3.995,100.15,100.06,59.96266164]
[1646249252375,14.9958,100.13,100.06,59.96266164]
[1646249253175,6.0,100.12,100.06,59.96266164]
[1646249253374,14.9958,100.13,100.06,59.96266164]
[1646249253774,14.9958,100.13,100.07,0.46012683]
[1646249254178,14.9958,100.13,100.05,4.5]
[1646249254377,6.0,100.12,99.98,0.4]
[1646249254575,60.43270732,100.07,99.98,0.4]
[1646249254776,15.84128556,100.06,99.98,0.4]
[1646249254976,14.37,100.05,99.98,0.4]
[1646249255176,14.37,100.04,99.997,60.29834648]
[1646249255378,15.71582143,100.04,99.89,16.53375179]
[1646249255577,60.50749032,100.03,99.851,70.3867]
[1646249255777,14.37,100.02,99.851,70.3867]
[1646249255978,199.88669306,100.03,99.87,14.37]
[1646249256178,198.18983789,100.03,99.88,14.37]
[1646249256377,198.18983789,100.03,99.871,23.2923]
[1646249256378,181.08928666,100.03,99.881,44.9415469]
[1646249256579,29.40808959,100.03,99.882,185.0]
[1646249256781,1.69685517,100.07,99.891,40.0]
[1646249256982,4.0,100.11,99.9,185.68]
[1646249257279,180.97997664,100.11,99.911,2.04004006]
[1646249257480,18.369,100.1,99.995,5.0]
[1646249257678,18.369,100.1,99.996,34.88582872]
[1646249257679,15.0029,100.08,99.996,34.88582872]
[1646249257879,87.47338863,100.08,99.996,34.88582872]
[1646249258080,86.1800949,100.08,99.996,34.88582872]
[1646249258485,71.8100949,100.08,99.996,34.88582872]
[1646249258884,19.0009,100.08,99.996,34.88582872]
[1646249259285,20.32298551,100.08,99.996,34.88582872]
[1646249259483,43.31290176,100.08,99.996,34.88582872]
[1646249259683,16.69975517,100.08,99.996,34.88582872]
[1646249259883,50.00122029,100.13,100.01,14.37]
[1646249260085,50.00122029,100.13,100.02,2.39891681]
[1646249260282,50.00122029,100.13,100.03,14.37]
[1646249260484,50.00122029,100.13,100.04,30.12696875]
[1646249260684,3.996,100.12,100.04,44.49696875]
[1646249260985,65.9964873,100.11,100.04,29.67896351]
[1646249262385,14.9997,100.11,100.04,29.67896351]
[1646249262584,14.9969,100.13,100.04,44.04896351]
[1646249262786,14.9969,100.13,100.04,46.59800354]
[1646249263085,14.9969,100.13,100.04,44.04896351]
[1646249263387,69.15573783,100.13,100.04,46.59800354]
[1646249263587,69.15573783,100.13,100.05,5.0]
[1646249263788,14.9969,100.13,100.06,21.52777678]
[1646249264790,58.27901187,100.14,100.06,21.52777678]
[1646249265191,58.27901187,100.14,100.06,24.07681681]
[1646249265395,14.994,100.15,100.07,5.0]
[1646249265592,3.996,100.17,100.07,14.37]
[1646249265992,3.996,100.17,100.07,16.91904003]
[1646249266394,57.68643426,100.17,100.08,29.67896351]
[1646249266592,57.68643426,100.17,100.09,14.37]
[1646249266793,57.68643426,100.17,100.1,7.15777678]
[1646249266999,72.67753426,100.17,100.1,7.15777678]
[1646249267392,68.68153426,100.17,100.1,7.15777678]
[1646249267793,10.42636176,100.2,100.1,7.15777678]
[1646249267993,2.5227215,100.26,100.11,16.91904003]
[1646249268293,2.5227215,100.26,100.12,20.9817]
[1646249268294,14.9823,100.23,100.12,20.9817]
[1646249268493,3.993,100.22,100.13,19.37]
[1646249268695,49.03764147,100.21,100.14,29.67896351]
[1646249268897,49.03764147,100.21,100.14,44.04896351]
[1646249269296,3.993,100.22,100.14,44.04896351]
[1646249269503,3.992,100.24,100.14,44.29896351]
[1646249270197,56.48911444,100.23,100.16,7.15777678]
[1646249270401,53.02414527,100.21,100.16,7.15777678]
[1646249270598,53.02414527,100.21,100.14,14.37]
[1646249270800,53.02414527,100.21,100.15,6.0]
[1646249271499,53.02414527,100.21,100.15,42.39790625]
[1646249271704,53.02414527,100.21,100.15,47.39790625]
[1646249273002,53.02414527,100.21,100.15,42.39790625]
[1646249273203,53.02414527,100.21,100.15,36.39790625]
[1646249275822,53.02414527,100.21,100.14,5.0]
[1646249276023,53.02414527,100.21,100.12,36.3233]
[1646249276422,53.02414527,100.21,100.13,5.0]
[1646249276723,53.02414527,100.21,100.14,35.5257223]
[1646249278029,14.9845,100.22,100.14,35.5257223]
[1646249278427,14.9845,100.22,100.14,47.5257223]
[1646249278827,14.9845,100.22,100.15,5.0]
[1646249279026,55.34565248,100.21,100.15,5.0]
[1646249279228,59.33765248,100.21,100.15,5.0]
[1646249279428,0.11760605,100.2,100.16,1.31101799]
[1646249279633,0.11760605,100.2,100.15,5.0]
[1646249279829,0.11760605,100.2,100.13,12.0]
[1646249280029,59.33765248,100.21,100.13,17.0]
[1646249280632,59.33765248,100.21,100.14,27.62593637]
[1646249280931,6.0,100.2,100.14,27.12593637]
[1646249282132,0.14958457,100.19,100.14,27.12593637]
[1646249282633,6.0,100.2,100.14,27.12593637]
[1646249283937,51.75507512,100.19,100.14,27.12593637]
[1646249284437,6.0,100.2,100.14,27.12593637]
[1646249285638,58.38170062,100.2,100.14,27.12593637]
[1646249286038,6.0,100.2,100.14,27.12593637]
[1646249286640,18.9769,100.21,100.14,27.37593637]
[1646249286839,14.9849,100.21,100.14,27.37593637]
[1646249287942,14.9849,100.21,100.14,32.37593637]
[1646249288540,3.993,100.23,100.09,15.3121]
[1646249288541,0.19750873,100.19,100.09,15.3121]
[1646249288742,3.994,100.18,100.05,15.1534]
[1646249288941,0.19750873,100.17,100.05,15.1534]
[1646249289140,62.855,100.16,100.05,15.1534]
[1646249289340,62.855,100.16,100.03,71.0722]
[1646249289341,58.86,100.14,100.03,71.0722]
[1646249289540,58.86,100.12,100.04,44.12910435]
[1646249289741,15.0006,100.1,100.04,44.12910435]
[1646249290040,13.6968581,100.13,100.04,44.12910435]
[1646249290247,12.0,100.13,100.04,44.12910435]
[1646249290448,6.0,100.12,100.04,44.12910435]
[1646249291143,56.6179209,100.13,100.04,44.37910435]
[1646249292041,56.6179209,100.13,100.04,63.23430435]
[1646249292246,68.6179209,100.13,100.04,47.98910435]
[1646249292444,44.41013881,100.11,100.04,47.98910435]
[1646249292642,44.41013881,100.11,100.04,44.12910435]
[1646249293545,59.41103881,100.11,100.04,44.12910435]
[1646249293742,3.997,100.1,100.04,44.12910435]
[1646249294743,6.0,100.09,100.04,44.12910435]
[1646249295143,55.63781913,100.09,100.04,44.12910435]
[1646249295548,6.0,100.09,100.04,44.12910435]
[1646249295743,3.997,100.11,100.04,44.12910435]
[1646249295945,6.0,100.1,100.04,44.12910435]
[1646249296147,3.997,100.09,100.04,44.12910435]
[1646249297147,3.997,100.11,100.04,44.12910435]
[1646249297349,3.997,100.15,100.05,0.19859969]
[1646249297547,3.997,100.15,100.05,2.74763972]
[1646249297747,3.996,100.16,100.05,14.99763972]
[1646249297948,3.996,100.16,100.05,25.95396191]
[1646249298150,54.93547985,100.16,100.06,7.19283594]
[1646249298348,54.93547985,100.16,100.06,19.44283594]
[1646249298548,44.08857986,100.14,100.08,3.86]
[1646249298747,3.995,100.14,100.06,19.44283594]
[1646249298946,6.0,100.15,100.06,19.19283594]
[1646249299148,6.0,100.17,100.07,14.9902]
[1646249299348,3.995,100.16,100.06,19.19283594]
[1646249299749,57.06428988,100.15,100.06,19.19283594]
[1646249299950,37.96376983,100.13,100.06,19.19283594]
[1646249300149,37.96376983,100.13,100.06,7.19283594]
[1646249300752,1.7154389,100.16,100.06,7.19283594]
[1646249301050,16.7082389,100.16,100.06,11.05283594]
[1646249301350,20.7032389,100.16,100.06,11.05283594]
[1646249301649,60.65303893,100.15,100.06,11.05283594]
[1646249302251,6.0,100.14,100.06,11.05283594]
[1646249302450,34.37502078,100.13,100.06,11.05283594]
[1646249302652,34.37502078,100.13,100.06,7.19283594]
[1646249302951,14.9922,100.17,100.06,26.04503594]
[1646249303156,9.995,100.16,100.06,34.43503594]
[1646249303354,9.995,100.16,100.07,3.86]
[1646249303553,3.995,100.16,100.07,3.86]
[1646249303757,60.46654519,100.15,100.08,44.12910435]
[1646249304055,60.46654519,100.15,100.08,47.98910435]
[1646249304453,3.995,100.16,100.08,62.97860435]
[1646249304654,3.995,100.18,100.08,59.11860435]
[1646249304857,6.0,100.17,100.08,62.97860435]
[1646249305155,3.995,100.16,100.08,62.97860435]
[1646249305355,6.0,100.17,100.08,62.97860435]
[1646249305555,3.995,100.18,100.08,59.11860435]
[1646249305756,3.994,100.19,100.09,3.86]
[1646249305959,3.994,100.2,100.1,12.0]
[1646249306155,3.994,100.2,100.11,14.9848]
[1646249306355,3.994,100.2,100.11,15.2348]
[1646249306554,3.994,100.2,100.12,7.19283594]
[1646249306756,3.994,100.2,100.12,7.44283594]
[1646249306957,3.994,100.2,100.12,11.30283594]
[1646249307157,34.77595257,100.19,100.12,11.30283594]
[1646249307760,34.77595257,100.19,100.12,11.05283594]
[1646249307955,51.95909525,100.17,100.12,7.19283594]
[1646249308357,55.95309525,100.17,100.12,7.19283594]
[1646249308756,51.95909525,100.17,100.12,7.19283594]
[1646249309356,20.9894,100.18,100.12,7.19283594]
[1646249309557,14.9894,100.18,100.12,7.19283594]
[1646249310256,18.9846,100.17,100.09,24.2544]
[1646249311261,54.70069887,100.16,100.1,39.12851451]
[1646249312658,14.9906,100.17,100.1,39.12851451]
[1646249312958,3.994,100.2,100.1,39.12851451]
[1646249313160,3.994,100.21,100.11,0.32922703]
[1646249313358,3.994,100.21,100.11,18.0]
[1646249313562,3.993,100.23,100.11,120.42904003]
[1646249313765,59.93486961,100.22,100.12,12.19342578]
[1646249313959,59.93486961,100.22,100.12,12.44342578]
[1646249314959,0.17501892,100.21,100.14,3.86]
[1646249315161,3.993,100.2,100.15,39.12851451]
[1646249315560,3.993,100.21,100.15,39.12851451]
[1646249316678,35.0931901,100.2,100.15,39.12851451]
[1646249317061,18.9776,100.21,100.15,39.12851451]
[1646249317461,6.0,100.2,100.15,39.12851451]
[1646249317662,3.993,100.19,100.15,39.12851451]
[1646249317963,6.0,100.2,100.15,39.12851451]
[1646249318162,70.32194684,100.21,100.15,39.12851451]
[1646249318362,39.69071287,100.19,100.15,39.12851451]
[1646249318561,43.68371287,100.19,100.15,39.12851451]
[1646249319364,58.67151287,100.19,100.12,47.0507]
[1646249320363,58.67151287,100.19,100.13,41.8821289]
[1646249321162,18.9808,100.19,100.13,41.8821289]
[1646249322463,3.993,100.19,100.13,41.8821289]
[1646249322662,3.993,100.2,100.13,41.8821289]
[1646249322865,3.993,100.2,100.13,42.1321289]
[1646249323066,3.993,100.23,100.13,54.1321289]
[1646249323269,3.993,100.23,100.13,69.1139289]
[1646249323467,3.992,100.24,100.13,173.24905409]
[1646249323671,1.34229318,100.25,100.14,107.91824886]
[1646249323870,3.992,100.26,100.15,121.06981139]
[1646249324073,6.0,100.25,100.16,107.54127498]
[1646249324289,6.0,100.25,100.17,153.5121289]
[1646249324489,6.0,100.25,100.17,155.68428088]
[1646249324689,6.0,100.25,100.17,158.23332091]
[1646249324890,3.992,100.26,100.17,173.20832091]
[1646249325091,3.991,100.28,100.19,99.63]
[1646249325291,3.991,100.28,100.2,117.63]
[1646249325496,1.70691494,100.32,100.24,99.63]
[1646249325692,2.70656616,100.39,100.25,117.63]
[1646249325892,58.9055665,100.38,100.26,42.68024767]
[1646249326096,52.27955998,100.36,100.27,12.0]
[1646249326291,49.76105043,100.34,100.27,12.0]
[1646249326491,3.987,100.33,100.25,12.0]
[1646249326693,108.62105043,100.34,100.25,12.0]
[1646249326694,49.76105043,100.34,100.25,12.0]
[1646249326893,49.76105043,100.34,100.23,12.0]
[1646249327093,3.988,100.33,100.23,12.25]
[1646249327492,68.94786437,100.32,100.24,35.31821368]
[1646249327692,68.94786437,100.32,100.24,47.31821368]
[1646249327991,68.94786437,100.32,100.24,12.0]
[1646249328195,9.988,100.31,100.24,12.0]
[1646249328394,14.9703,100.3,100.24,12.0]
[1646249328992,45.68020848,100.29,100.24,12.0]
[1646249329493,45.68020848,100.29,100.23,0.25]
[1646249329793,45.68020848,100.29,100.23,6.0]
[1646249329992,45.68020848,100.29,100.23,6.25]
[1646249330894,45.68020848,100.29,100.23,6.0]
[1646249331095,45.68020848,100.29,100.23,6.25]
[1646249332596,45.68020848,100.29,100.24,28.39960445]
[1646249332997,14.9703,100.3,100.24,28.39960445]
[1646249333199,6.0,100.31,100.24,40.39960445]
[1646249333598,6.0,100.31,100.24,40.64960445]
[1646249333799,3.989,100.34,100.24,46.43460445]
[1646249333997,62.02461659,100.34,100.26,11.15869201]
[1646249334197,58.03561659,100.34,100.26,23.40869201]
[1646249334997,73.00111659,100.34,100.26,23.40869201]
[1646249335197,73.00111659,100.34,100.26,12.0]
[1646249335397,73.00111659,100.34,100.2,186.69093838]
[1646249335398,3.988,100.33,100.23,12.0]
[1646249335698,85.10648553,100.33,100.2,8.243]
[1646249335899,85.91642707,100.32,100.2,20.243]
[1646249336098,46.89387659,100.31,100.22,34.6917436]
[1646249336301,67.0390781,100.31,100.22,34.6917436]
[1646249336498,53.8963,100.33,100.22,46.6917436]
[1646249336700,49.9083,100.33,100.22,46.6917436]
[1646249336898,49.9083,100.33,100.22,50.6807436]
[1646249337101,49.9083,100.33,100.22,50.9307436]
[1646249337299,14.9662,100.33,100.23,14.9666]
[1646249337598,68.11668906,100.33,100.25,4.86655286]
[1646249337801,68.11668906,100.33,100.25,17.11655286]
[1646249339101,6.0,100.32,100.25,17.11655286]
[1646249339300,68.11668906,100.33,100.25,17.11655286]
[1646249339903,68.11668906,100.33,100.25,16.86655286]
[1646249340104,14.9713,100.31,100.22,17.759]
[1646249340302,14.9713,100.31,100.22,5.759]
[1646249340904,3.989,100.3,100.22,5.759]
[1646249341105,45.98491846,100.29,100.23,36.79033473]
[1646249342707,60.95611846,100.29,100.23,36.79033473]
[1646249342906,60.95611846,100.29,100.22,5.759]
[1646249343107,3.989,100.28,100.22,5.759]
[1646249343307,53.9131,100.28,100.22,5.759]
[1646249343508,112.7731,100.28,100.22,5.759]
[1646249343708,114.48001494,100.28,100.22,5.759]
[1646249343909,59.60448926,100.27,100.22,5.759]
[1646249344108,48.18326368,100.25,100.22,5.759]
[1646249345010,63.16146368,100.25,100.22,5.759]
[1646249346110,14.9782,100.25,100.22,5.759]
[1646249346312,3.99,100.26,100.22,5.759]
[1646249346512,14.9751,100.27,100.22,5.759]
[1646249347114,14.9751,100.27,100.23,3.96391027]
[1646249347718,18.9651,100.27,100.23,3.96391027]
[1646249347916,18.9651,100.27,100.22,5.759]
[1646249348917,18.9651,100.27,100.22,38.47503904]
[1646249349418,18.9651,100.27,100.22,32.71603904]
[1646249350318,14.9751,100.27,100.22,32.71603904]
[1646249351121,54.39115348,100.26,100.22,32.71603904]
[1646249351519,0.20343459,100.25,100.22,32.71603904]
[1646249351719,0.20343459,100.25,100.19,36.1341]
[1646249352018,0.20343459,100.25,100.19,36.3841]
[1646249352421,0.20343459,100.25,100.19,36.1341]
[1646249352621,54.39115348,100.26,100.19,24.1341]
[1646249353025,54.39115348,100.26,100.2,9.14958461]
[1646249353425,36.52956334,100.3,100.2,9.14958461]
[1646249353721,14.9743,100.27,100.2,9.39958461]
[1646249354521,61.40761032,100.27,100.2,9.39958461]
[1646249354723,61.40761032,100.27,100.2,9.14958461]
[1646249354924,46.43331032,100.27,100.2,21.39958461]
[1646249358744,3.99,100.28,100.21,0.20198637]
[1646249358945,14.9724,100.29,100.21,12.0]
[1646249359247,3.99,100.3,100.21,114.30693615]
[1646249359445,3.989,100.33,100.22,107.85481172]
[1646249359646,3.989,100.33,100.23,111.63]
[1646249359845,43.47623348,100.32,100.23,142.28871185]
[1646249360246,43.47623348,100.32,100.25,9.14958461]
[1646249360547,43.47623348,100.32,100.25,21.39958461]
[1646249361347,47.46423348,100.32,100.25,21.39958461]
[1646249361852,47.46423348,100.32,100.25,12.0]
[1646249362048,43.47623348,100.32,100.25,0.25]
[1646249362249,58.44363348,100.32,100.23,12.0]
[1646249362448,3.989,100.31,100.23,12.0]
[1646249362948,54.46884501,100.3,100.23,45.55717902]
[1646249364149,69.43954501,100.3,100.23,45.55717902]
[1646249364749,69.43954501,100.3,100.23,45.80717902]
[1646249366050,18.9574,100.32,100.23,45.55717902]
[1646249366250,6.0,100.31,100.23,45.80717902]
[1646249366453,18.9574,100.32,100.23,45.80717902]
[1646249366651,14.9684,100.32,100.23,45.80717902]
[1646249366852,6.0,100.31,100.23,45.80717902]
[1646249367052,53.65348962,100.31,100.23,45.80717902]
[1646249367258,57.64248962,100.31,100.23,45.80717902]
[1646249368054,57.64248962,100.31,100.23,60.77407902]
[1646249369261,3.989,100.31,100.23,60.77407902]
[1646249370359,73.01471076,100.32,100.23,60.52407902]
[1646249370558,3.989,100.31,100.23,45.80717902]
[1646249370759,18.9578,100.31,100.23,45.80717902]
[1646249371660,3.989,100.33,100.23,45.80717902]
[1646249371861,6.0,100.32,100.23,45.80717902]
[1646249372061,6.0,100.32,100.23,147.98621905]
[1646249372260,6.0,100.32,100.24,6.0]
[1646249372460,6.0,100.32,100.25,12.0]
[1646249372661,6.0,100.32,100.25,12.25]
[1646249372862,59.89149502,100.32,100.26,6.00111744]
[1646249373063,59.89149502,100.32,100.26,18.00111744]
[1646249373261,53.89149502,100.32,100.26,18.00111744]
[1646249373961,14.967,100.33,100.26,18.00111744]
[1646249374963,60.19724424,100.33,100.26,18.00111744]
[1646249375668,0.1053476,100.32,100.26,18.00111744]
[1646249375868,3.988,100.32,100.26,18.00111744]
[1646249376769,0.15353401,100.31,100.26,18.00111744]
[1646249376969,18.9553,100.32,100.26,18.00111744]
[1646249377973,58.62519985,100.31,100.26,18.00111744]
[1646249378174,18.9553,100.32,100.26,18.00111744]
[1646249378175,14.9673,100.32,100.26,18.00111744]
[1646249378974,18.9536,100.34,100.26,18.00111744]
[1646249379173,6.0,100.33,100.26,18.00111744]
[1646249379375,55.09790867,100.33,100.26,18.00111744]
[1646249379673,49.09790867,100.33,100.26,18.00111744]
[1646249380072,53.08590867,100.33,100.26,18.25111744]
[1646249380673,64.06370867,100.33,100.26,18.25111744]
[1646249381078,49.09790867,100.33,100.26,18.25111744]
[1646249384280,14.9644,100.34,100.26,18.25111744]
[1646249384483,3.988,100.36,100.26,120.43015747]
[1646249384682,3.987,100.37,100.27,105.63]
[1646249384880,3.987,100.37,100.28,111.63]
[1646249385081,3.987,100.37,100.28,114.19104988]
[1646249385281,43.86909635,100.37,100.29,133.18717902]
[1646249385481,43.86909635,100.37,100.3,12.0]
[1646249385684,43.86909635,100.37,100.31,6.00111744]
[1646249385883,43.86909635,100.37,100.31,18.00111744]
[1646249386384,3.987,100.38,100.31,18.00111744]
[1646249386585,115.60656616,100.4,100.31,18.00111744]
[1646249386586,3.986,100.39,100.32,6.0]
[1646249386788,6.69156616,100.41,100.33,12.0]
[1646249386984,3.985,100.41,100.32,128.6394]
[1646249387188,3.985,100.41,100.32,128.8894]
[1646249387384,53.92157336,100.4,100.33,45.55717902]
[1646249387585,52.55536616,100.43,100.33,145.43717902]
[1646249387586,3.985,100.42,100.33,145.43717902]
[1646249388084,2.70656616,100.44,100.33,145.43717902]
[1646249388085,3.985,100.43,100.33,52.68217902]
[1646249388290,6.0,100.42,100.34,14.9503]
[1646249388485,61.44768408,100.42,100.35,18.00111744]
[1646249388783,61.44768408,100.42,100.35,18.25111744]
[1646249389485,61.44768408,100.42,100.35,33.20011744]
[1646249389685,14.9503,100.44,100.35,33.20011744]
[1646249389886,0.50005179,100.47,100.36,217.43904003]
[1646249390086,0.50005179,100.47,100.38,150.03]
[1646249390286,0.50005179,100.47,100.39,192.7501]
[1646249390490,164.27387338,100.52,100.4,251.82147442]
[1646249390686,4.04948785,100.57,100.42,249.66]
[1646249390687,43.15330607,100.53,100.42,249.66]
[1646249390889,43.15330607,100.53,100.44,10.72638554]
[1646249391085,43.15330607,100.53,100.45,18.0]
[1646249391285,43.15330607,100.53,100.46,28.83191092]
[1646249391492,43.15330607,100.53,100.47,18.0]
[1646249391786,43.15330607,100.53,100.47,18.25]
[1646249391986,3.98,100.52,100.47,12.0]
[1646249392787,52.67655168,100.51,100.47,12.0]
[1646249395589,52.67655168,100.51,100.43,22.5405]
[1646249395789,52.67655168,100.51,100.43,12.0]
[1646249395790,0.2438343,100.5,100.43,12.0]
[1646249395988,0.2438343,100.5,100.42,23.0075]
[1646249396192,3.981,100.49,100.42,23.0075]
[1646249396390,54.11515186,100.48,100.42,23.0075]
[1646249396992,69.05895186,100.48,100.42,23.0075]
[1646249397192,69.05895186,100.48,100.41,35.3645]
[1646249397794,69.05895186,100.48,100.41,12.0]
[1646249397994,3.982,100.47,100.41,12.0]
[1646249398194,14.9454,100.46,100.41,12.0]
[1646249398797,43.10012908,100.45,100.41,12.0]
[1646249399613,58.04652908,100.45,100.41,12.0]
[1646249399813,0.20642844,100.44,100.37,12.0]
[1646249400014,0.20642844,100.44,100.37,12.25]